Body,Body Name,Date,TransNo,Amount � (Excl VAT),Supplier name,Description,Expense Area,Expense Type,Expense Code,
http://opendatacommunities.org/id/london-borough-council/sutton,London Borough of Sutton,15/03/2023,10010980,34.95, AMZNMKTPLACE,Children services costs,Health and Wellbeing,Equipment And Materials Purchase,A40000,
http://opendatacommunities.org/id/london-borough-council/sutton,London Borough of Sutton,14/03/2023,10010980,60.00, SENSORY DIRECT,Children services costs,Health and Wellbeing,Equipment And Materials Purchase,A40000,
http://opendatacommunities.org/id/london-borough-council/sutton,London Borough of Sutton,22/03/2023,10010980,12.49, AMZNMKTPLACE,TOYS AND EQUIPMENT,Health and Wellbeing,Equipment And Materials Purchase,A40000,
http://opendatacommunities.org/id/london-borough-council/sutton,London Borough of Sutton,22/03/2023,10010980,8.32, TWINKL,TWINKL SUBSCRIPTION,Health and Wellbeing,Equipment And Materials Purchase,A40000,
http://opendatacommunities.org/id/london-borough-council/sutton,London Borough of Sutton,21/03/2023,10010980,10.25, POUNDLAND,TOYS AND EQUIPMENT,Health and Wellbeing,Equipment And Materials Purchase,A40000,
http://opendatacommunities.org/id/london-borough-council/sutton,London Borough of Sutton,28/02/2023,10010980,19.94, FINDEL EDUCATION,TOYS AND EQUIPMENT (PAINTS),Health and Wellbeing,Equipment And Materials Purchase,A40000,
http://opendatacommunities.org/id/london-borough-council/sutton,London Borough of Sutton,27/02/2023,10010980,5.83, POUNDLAND LTD,TOYS AND EQUIPMENT,Health and Wellbeing,Equipment And Materials Purchase,A40000,
http://opendatacommunities.org/id/london-borough-council/sutton,London Borough of Sutton,09/03/2023,10010980,7.49, EBAY O 01-09803-70193,TOYS AND EQUIPMENT,Health and Wellbeing,Equipment And Materials Purchase,A40000,
http://opendatacommunities.org/id/london-borough-council/sutton,London Borough of Sutton,06/03/2023,10010980,24.96, AMZNMKTPLACE,TOYS AND EQUIPMENT,Health and Wellbeing,Equipment And Materials Purchase,A40000,
http://opendatacommunities.org/id/london-borough-council/sutton,London Borough of Sutton,06/03/2023,10010980,52.58, TESCO STORES 5999,GROCERIES,Health and Wellbeing,Provisions,A41006,
http://opendatacommunities.org/id/london-borough-council/sutton,London Borough of Sutton,03/03/2023,10010980,89.20, SAINSBURYS.CO.UK,GROCERIES,Health and Wellbeing,Provisions,A41006,
http://opendatacommunities.org/id/london-borough-council/sutton,London Borough of Sutton,01/03/2023,10010980,3.75, ASDA STORES,GROCERIES,Health and Wellbeing,Provisions,A41006,
http://opendatacommunities.org/id/london-borough-council/sutton,London Borough of Sutton,20/03/2023,10010980,69.77, TESCO STORES 5999,GROCERIES,Health and Wellbeing,Provisions,A41006,
http://opendatacommunities.org/id/london-borough-council/sutton,London Borough of Sutton,18/03/2023,10010980,4.00, SAINSBURYS S/MKTS,GROCERIES,Health and Wellbeing,Provisions,A41006,
http://opendatacommunities.org/id/london-borough-council/sutton,London Borough of Sutton,17/03/2023,10010980,77.79, SAINSBURYS.CO.UK,GROCERIES,Health and Wellbeing,Provisions,A41006,
http://opendatacommunities.org/id/london-borough-council/sutton,London Borough of Sutton,14/03/2023,10010980,11.80, ASDA STORES,GROCERIES,Health and Wellbeing,Provisions,A41006,
http://opendatacommunities.org/id/london-borough-council/sutton,London Borough of Sutton,01/03/2023,10010980,23.94, AMZNMKTPLACE,"SPLIT - 100% ECO RECYCLED ART A4 CARTRIDGE PAPER WHITE GREAT ART PAPER 140GSM PACK OF 250 SHEETS - SUITABLE FOR BOOKMAKING, SKETCHING, PAINTING, PRINTING AND (100%)",Health and Wellbeing,Equipment And Materials Purchase,A40000,
http://opendatacommunities.org/id/london-borough-council/sutton,London Borough of Sutton,28/02/2023,10010980,9.16, AMZNMKTPLACE AMAZON.CO,"SPLIT - KINBOM 32PCS CYANOTYPE PAPER, SUN PRINT PAPER LIGHT SENSITIVE PAPER PHOTOGRAPHY WITH ACRYLIC SHEET FOR DIY CRAFTS PROJECTS (100%)",Health and Wellbeing,Equipment And Materials Purchase,A40000,
http://opendatacommunities.org/id/london-borough-council/sutton,London Borough of Sutton,28/02/2023,10010980,9.99, AMZNMKTPLACE AMAZON.CO,SPLIT - ROYAL KRAFT INDIAN PAISLEY AND LEAF MOTIF WOOD BLOCK STAMPS (SET OF 6) (100%),Health and Wellbeing,Equipment And Materials Purchase,A40000,
http://opendatacommunities.org/id/london-borough-council/sutton,London Borough of Sutton,28/02/2023,10010980,9.99, AMZNMKTPLACE AMAZON.CO,SPLIT - ROYAL KRAFT INDIAN PAISLEY AND LEAF MOTIF WOOD BLOCK STAMPS (SET OF 6) (100%),Health and Wellbeing,Equipment And Materials Purchase,A40000,
http://opendatacommunities.org/id/london-borough-council/sutton,London Borough of Sutton,28/02/2023,10010980,9.99, AMZNMKTPLACE AMAZON.CO,SPLIT - HENNA WOODEN STAMPS URBAN SMALL ROUND FLORAL PATTERN PRINTING BLOCKS (SET OF 10) (100%),Health and Wellbeing,Equipment And Materials Purchase,A40000,
http://opendatacommunities.org/id/london-borough-council/sutton,London Borough of Sutton,28/02/2023,10010980,9.16, AMZNMKTPLACE AMAZON.CO,"SPLIT - KINBOM 32PCS CYANOTYPE PAPER, SUN PRINT PAPER LIGHT SENSITIVE PAPER PHOTOGRAPHY WITH ACRYLIC SHEET FOR DIY CRAFTS PROJECTS (100%)",Health and Wellbeing,Equipment And Materials Purchase,A40000,
http://opendatacommunities.org/id/london-borough-council/sutton,London Borough of Sutton,28/02/2023,10010980,49.80, AMZNMKTPLACE AMAZON.CO,SPLIT - ON TREND FABRICS CALICO 100% UNBLEACHED COTTON FABRIC - 150CM WIDE MEDIUM WEIGHT CREAM COLOUR - SOLD BY THE METRE (100%),Health and Wellbeing,Equipment And Materials Purchase,A40000,
http://opendatacommunities.org/id/london-borough-council/sutton,London Borough of Sutton,28/02/2023,10010980,16.92, AMZNMKTPLACE AMAZON.CO,SPLIT - BORDER AND ASSORTED ARTISTIC DESIGNS WOODEN BLOCK STAMPS (SET OF 4) (92.49%),Health and Wellbeing,Equipment And Materials Purchase,A40000,
http://opendatacommunities.org/id/london-borough-council/sutton,London Borough of Sutton,28/02/2023,10010980,1.37, AMZNMKTPLACE AMAZON.CO,BALANCING ENTRY AMOUNT (7.51%),Health and Wellbeing,Equipment And Materials Purchase,A40000,
http://opendatacommunities.org/id/london-borough-council/sutton,London Borough of Sutton,28/02/2023,10010980,9.31, AMZNMKTPLACE,SPLIT - 1 X 300ML SCOLA WATER BASED LINO CRAFT BLOCK PRINTING INK BRILLIANT BLUE (79.26%),Health and Wellbeing,Equipment And Materials Purchase,A40000,
http://opendatacommunities.org/id/london-borough-council/sutton,London Borough of Sutton,28/02/2023,10010980,2.43, AMZNMKTPLACE,BALANCING ENTRY AMOUNT (20.74%),Health and Wellbeing,Equipment And Materials Purchase,A40000,
http://opendatacommunities.org/id/london-borough-council/sutton,London Borough of Sutton,28/02/2023,10010980,11.70, AMZNMKTPLACE,SPLIT - SCOLA BPW300/38 1 X 300ML WATER BASED LINO CRAFT BLOCK PRINTING INK BLACK (100%),Health and Wellbeing,Equipment And Materials Purchase,A40000,
http://opendatacommunities.org/id/london-borough-council/sutton,London Borough of Sutton,28/02/2023,10010980,45.74, ART SHOP,MATERIALS FOR NLHF PROJECT. VAT INVOICE REQUESTED.,Health and Wellbeing,Equipment And Materials Purchase,A40000,
http://opendatacommunities.org/id/london-borough-council/sutton,London Borough of Sutton,28/02/2023,10010980,19.98, AMZNMKTPLACE AMAZON.CO,SPLIT - FABRIC WOODEN STAMPS CREATIVE BORDER PATTERN PRINTING BLOCKS (SET OF 10) (100%),Health and Wellbeing,Equipment And Materials Purchase,A40000,
http://opendatacommunities.org/id/london-borough-council/sutton,London Borough of Sutton,28/02/2023,10010980,9.16, AMZNMKTPLACE AMAZON.CO,"SPLIT - KINBOM 32PCS CYANOTYPE PAPER, SUN PRINT PAPER LIGHT SENSITIVE PAPER PHOTOGRAPHY WITH ACRYLIC SHEET FOR DIY CRAFTS PROJECTS (100%)",Health and Wellbeing,Equipment And Materials Purchase,A40000,
http://opendatacommunities.org/id/london-borough-council/sutton,London Borough of Sutton,27/02/2023,10010980,19.98, AMZNMKTPLACE AMAZON.CO,SPLIT - HENNA WOODEN STAMPS URBAN SMALL ROUND FLORAL PATTERN PRINTING BLOCKS (SET OF 10) (100%),Health and Wellbeing,Equipment And Materials Purchase,A40000,
http://opendatacommunities.org/id/london-borough-council/sutton,London Borough of Sutton,27/02/2023,10010980,51.24, AMZNMKTPLACE AMAZON.CO,SPLIT - SCOLA TEXTILE PAINT 6 X 150ML (100%),Health and Wellbeing,Equipment And Materials Purchase,A40000,
http://opendatacommunities.org/id/london-borough-council/sutton,London Borough of Sutton,22/03/2023,10010980,662.05, PF CHARGE PARCELS,"DELIVERY FEE (IMPORT FROM GERMANY) FOR FOLDSCOPES, AS PART OF THE CULTURAL IMPACT AWARD PRIMARY SCHOOL PROGRAMME.",Health and Wellbeing,Equipment And Materials Purchase,A40000,
http://opendatacommunities.org/id/london-borough-council/sutton,London Borough of Sutton,02/03/2023,10010980,9.80, LNE RAILWAY EDB STN,SPLIT - (50%),Health and Wellbeing,Staff Development And Training,A15022,
http://opendatacommunities.org/id/london-borough-council/sutton,London Borough of Sutton,02/03/2023,10010980,9.80, LNE RAILWAY EDB STN,SPLIT - (50%),Health and Wellbeing,Staff Development And Training,A15022,
http://opendatacommunities.org/id/london-borough-council/sutton,London Borough of Sutton,13/03/2023,10010980,8.07, AMZNMKTPLACE AMAZON.CO,"SPLIT - A4 COLOURED PAPER, COLOURED CARD 100 SHEETS 20 ASSORTED COLOURS ORIGAMI PAPER, CRAFTING AND DECORATIN, COLOURED ART PAPER (297 X 210MM) (100%)",Health and Wellbeing,Equipment And Materials Purchase,A40000,
http://opendatacommunities.org/id/london-borough-council/sutton,London Borough of Sutton,13/03/2023,10010980,3.42, AMZNMKTPLACE AMAZON.CO,"SPLIT - 200PCS NATURAL RUBBER ELASTIC BANDS HEAVY DUTY BANDS FOR HAIR HOME, PENS, CATAPULTS, BILLS, BANK PAPER, OFFICE SUPPLIES(38MM) (100%)",Health and Wellbeing,Equipment And Materials Purchase,A40000,
http://opendatacommunities.org/id/london-borough-council/sutton,London Borough of Sutton,13/03/2023,10010980,2.87, AMZNMKTPLACE AMAZON.CO,SPLIT - 200PK GOOGLY EYES SELF ADHESIVE - SMALL & MEDIUM GOOGLY EYES FOR CRAFTING | GOOGLE EYES FOR CHILDREN DIY ARTS & CRAFT | GOGGLY STICK ON EYES FOR CRAFTS GOOGLY EYES LARGE | WIGGLE STICK ON GOOGLEY EYES (100%),Health and Wellbeing,Equipment And Materials Purchase,A40000,
http://opendatacommunities.org/id/london-borough-council/sutton,London Borough of Sutton,13/03/2023,10010980,5.32, AMZNMKTPLACE AMAZON.CO,"SPLIT - 100 X 7OZ SINGLE WALL WHITE PAPER CUPS FOR HOT & COLD DRINKS PREMIUM DISPOSABLE COFFEE/TEA PAPER CUPS PERFECT FOR YOUR HOME, CAF�, WORK, PARTIES OR OUTDOORS. (100%)",Health and Wellbeing,Equipment And Materials Purchase,A40000,
http://opendatacommunities.org/id/london-borough-council/sutton,London Borough of Sutton,13/03/2023,10010980,3.32, AMZNMKTPLACE AMAZON.CO,SPLIT - DIAMANTE CRAFTS MINI MARABOU FEATHERS 50 PER PACK - 3-8 CM - YELLOW (100%),Health and Wellbeing,Equipment And Materials Purchase,A40000,
http://opendatacommunities.org/id/london-borough-council/sutton,London Borough of Sutton,13/03/2023,10010980,4.99, AMZNMKTPLACE AMAZON.CO,"SPLIT - Q-CONNECT GLUE STICK, 10 G, PACK OF 25, GREEN (100%)",Health and Wellbeing,Equipment And Materials Purchase,A40000,
http://opendatacommunities.org/id/london-borough-council/sutton,London Borough of Sutton,13/03/2023,10010980,6.68, AMZNMKTPLACE AMAZON.CO,"SPLIT - CREATIV 51858 POM POMS, D: 20 MM, WHITE, 100 PIECES (100%)",Health and Wellbeing,Equipment And Materials Purchase,A40000,
http://opendatacommunities.org/id/london-borough-council/sutton,London Borough of Sutton,22/03/2023,10010980,62.25, CLOCKTOWER CAFE LIMITE,SPLIT - (50%),Health and Wellbeing,Catering,A41000,
http://opendatacommunities.org/id/london-borough-council/sutton,London Borough of Sutton,22/03/2023,10010980,62.25, CLOCKTOWER CAFE LIMITE,SPLIT - (50%),Health and Wellbeing,Catering,A41000,
http://opendatacommunities.org/id/london-borough-council/sutton,London Borough of Sutton,09/03/2023,10010980,32.47, AMZNMKTPLACE AMAZON.CO,CHAIRS FOR OUTREACH EVENTS,Health and Wellbeing,Other Supplies & Services,A44291,
http://opendatacommunities.org/id/london-borough-council/sutton,London Borough of Sutton,28/02/2023,10010980,29.99, AMZNMKTPLACE,TROLLEY FOR OUTREACH AND ENGAGEMENT EVENTS,Health and Wellbeing,Other Supplies & Services,A44291,
http://opendatacommunities.org/id/london-borough-council/sutton,London Borough of Sutton,22/03/2023,10010980,44.50, IKEA LTD SHOP ONLINE,Family Hub expenses,Health and Wellbeing,Furniture - Purchase,A40015,
http://opendatacommunities.org/id/london-borough-council/sutton,London Borough of Sutton,07/03/2023,10010980,247.75, IKEA LTD 144 CROYDON M,Family Hub expenses,Health and Wellbeing,Furniture - Purchase,A40015,
http://opendatacommunities.org/id/london-borough-council/sutton,London Borough of Sutton,01/03/2023,10010980,638.00, IKEA LTD SHOP ONLINE,Family Hub expenses,Health and Wellbeing,Furniture - Purchase,A40015,
http://opendatacommunities.org/id/london-borough-council/sutton,London Borough of Sutton,01/03/2023,10010980,189.89, B & Q 1256,Family Hub expenses,Health and Wellbeing,Furniture - Purchase,A40015,
http://opendatacommunities.org/id/london-borough-council/sutton,London Borough of Sutton,23/03/2023,10010980,514.00, AO RETAIL LIMITED,Family Hub expenses,Health and Wellbeing,Furniture - Purchase,A40015,
http://opendatacommunities.org/id/london-borough-council/sutton,London Borough of Sutton,27/02/2023,10010980,235.79, WWW.ARGOS.CO.UK,NEW FRIDGE FOR TWEEDDALE FAMILY HUB,Health and Wellbeing,Furniture - Purchase,A40015,
http://opendatacommunities.org/id/london-borough-council/sutton,London Borough of Sutton,22/03/2023,10010980,133.02, TESCO STORES 3235,Family Hub expenses,Health and Wellbeing,Catering,A41000,
http://opendatacommunities.org/id/london-borough-council/sutton,London Borough of Sutton,01/03/2023,10010980,21.71, ALDI STORES,Family Hub expenses,Health and Wellbeing,Catering,A41000,
http://opendatacommunities.org/id/london-borough-council/sutton,London Borough of Sutton,24/03/2023,10010980,41.63, LIDL GB LONDON,Family Hub expenses,Health and Wellbeing,Catering,A41000,
http://opendatacommunities.org/id/london-borough-council/sutton,London Borough of Sutton,24/03/2023,10010980,7.50, W M MORRISON STORE,Family Hub expenses,Health and Wellbeing,Catering,A41000,
http://opendatacommunities.org/id/london-borough-council/sutton,London Borough of Sutton,03/03/2023,10010980,8.32, SPOTIFY UK,MUSIC FOR WEDDINGS,Health and Wellbeing,Subscriptions,A47010,
http://opendatacommunities.org/id/london-borough-council/sutton,London Borough of Sutton,06/03/2023,10010980,2.79, AMZNMKTPLACE AMAZON.CO,"SPLIT - AMAZON BRAND - EONO MOUSE MAT, DUAL PU MOUSE PAD, FAUX LEATHER MOUSEPADS, WATERPROOF ULTRA SMOOTH MOUSE MATS FOR WIRELESS MOUSE LAPTOP, COMPUTER, PC O (100%)",Peoples Services,Equipment And Materials Purchase,A40000,
http://opendatacommunities.org/id/london-borough-council/sutton,London Borough of Sutton,06/03/2023,10010980,33.06, AMZNMKTPLACE AMAZON.CO,"SPLIT - LOGITECH SIGNATURE M650 L FULL SIZE WIRELESS MOUSE - FOR LARGE SIZED HANDS, 2-YEAR BATTERY, SILENT CLICKS, CUSTOMISABLE SIDE BUTTONS, BLUETOOTH, FOR P (100%)",Peoples Services,Equipment And Materials Purchase,A40000,
http://opendatacommunities.org/id/london-borough-council/sutton,London Borough of Sutton,08/03/2023,10010980,51.24, AMZNMKTPLACE,CHAIR,Peoples Services,Equipment And Materials Purchase,A40000,
http://opendatacommunities.org/id/london-borough-council/sutton,London Borough of Sutton,01/03/2023,10010980,32.33, AMZNBUSINESS 1L0U408F4,"SPLIT - LOGITECH SIGNATURE M650 WIRELESS MOUSE - FOR SMALL TO MEDIUM SIZED HANDS, 2-YEAR BATTERY, SILENT CLICKS, CUSTOMISABLE SIDE BUTTONS, BLUETOOTH, FOR PC/ (100%)",Peoples Services,Miscellaneous Expenses,A49000,
http://opendatacommunities.org/id/london-borough-council/sutton,London Borough of Sutton,27/02/2023,10010980,18.32, AMZNMKTPLACE,"SPLIT - SCREEN WIPES INDIVIDUALLY WRAPPED, EOTW COMPUTER SCREEN CLEANER WIPES, CLEANING WIPES FOR MONITOR/LAPTOP/IPAD/MOBILE PHONE/LCD TV/TABLET PC/KEYBOARD C (100%)",Peoples Services,Miscellaneous Expenses,A49000,
http://opendatacommunities.org/id/london-borough-council/sutton,London Borough of Sutton,06/03/2023,10010980,100.00, STARBUCKS,STARBUCKS VOUCHER PAYMENT FOR NEW STARTERS,Peoples Services,Miscellaneous Expenses,A49000,
http://opendatacommunities.org/id/london-borough-council/sutton,London Borough of Sutton,27/02/2023,10010980,9.16, AMZNMKTPLACE,"SPLIT - MICROFIBER CLEANING CLOTHS FOR GLASSES, LCD SCREENS, LENSES, CAMERA, CELL PHONE AND TABLETS (20 PIECES, 10 COLORS) (100%)",Peoples Services,Miscellaneous Expenses,A49000,
http://opendatacommunities.org/id/london-borough-council/sutton,London Borough of Sutton,15/03/2023,10010980,150.00, AMAZON.CO.UK 1X4QF04F4,USER RESEARCH INCENTIVES FOR KINGSTON HOUSING PROJECT.  RECHARGE TO RBK COST CODE: X42052 (HOUSING MANAGEMENT SOLUTIONS).,Resources,ICT Expenses,A45009,
http://opendatacommunities.org/id/london-borough-council/sutton,London Borough of Sutton,20/03/2023,10010980,224.75, MAJESTIC WINE,LNYDP RECEPTION 31.3.23,Resources,Hospitality,A46020,
http://opendatacommunities.org/id/london-borough-council/sutton,London Borough of Sutton,16/03/2023,10010980,41.70, SAINSBURYS S/MKTS,MAYORAL RECEPTION FOR YOUNG CARERS 16.3.23,Resources,Hospitality,A46020,
http://opendatacommunities.org/id/london-borough-council/sutton,London Borough of Sutton,01/03/2023,10010980,116.00, SAINSBURYS SMKTS,FOOD FOR MAYORAL RECEPTION - YOUNG CARERS - 16TH MARCH 2023,Resources,Hospitality,A46020,
http://opendatacommunities.org/id/london-borough-council/sutton,London Borough of Sutton,28/02/2023,10010980,8.00, SAINSBURYS S/MKTS,REFRESHMENTS FOR MAYORAL RECEPTION - 10TH MARCH 2023,Resources,Hospitality,A46020,
http://opendatacommunities.org/id/london-borough-council/sutton,London Borough of Sutton,27/02/2023,10010980,61.00, SAINSBURYS SMKTS,FOOD FOR MAYORAL RECEPTION - 3RD CHEAM SCOUTS 10TH MARCH 2023,Resources,Hospitality,A46020,
http://opendatacommunities.org/id/london-borough-council/sutton,London Borough of Sutton,10/03/2023,10010980,7.95, DAWSONS,KEY CUTTING,Resources,Stationery,A43015,
http://opendatacommunities.org/id/london-borough-council/sutton,London Borough of Sutton,09/03/2023,10010980,20.00, TFL OYSTER AUTO TOPUP,"TFL OYSTER AUTO TOPUP FOR ""REDACTED - PERSONAL DATA""",Resources,Non-Staff Travel Subsistence & Training,A46006,
http://opendatacommunities.org/id/london-borough-council/sutton,London Borough of Sutton,21/03/2023,10010980,282.21, MAILCHIMP,SUBSCRIPTION,Resources,Publicity,A44266,
http://opendatacommunities.org/id/london-borough-council/sutton,London Borough of Sutton,20/03/2023,10010980,4.08, FOREIGN EXCHANGE FEE,FOREIGN EXCHANGE FEE,Resources,Publicity,A44266,
http://opendatacommunities.org/id/london-borough-council/sutton,London Borough of Sutton,18/03/2023,10010980,148.20, CANVA  I03729-0534032,SUBSCRIPTION,Resources,Publicity,A44266,
http://opendatacommunities.org/id/london-borough-council/sutton,London Borough of Sutton,14/03/2023,10010980,496.91, MAILCHIMP,SUBSCRIPTION,Resources,Publicity,A44266,
http://opendatacommunities.org/id/london-borough-council/sutton,London Borough of Sutton,12/03/2023,10010980,17.99, SITEGROUND HOSTING,SUBSCRIPTION,Resources,Publicity,A44266,
http://opendatacommunities.org/id/london-borough-council/sutton,London Borough of Sutton,12/03/2023,10010980,20.00, TFL OYSTER AUTO TOPUP,CL&G,Resources,"Grants, Contributions & Donations",A47005,
http://opendatacommunities.org/id/london-borough-council/sutton,London Borough of Sutton,10/03/2023,10010980,20.00, OYSTER BUS AUTOLOAD,CL&G,Resources,"Grants, Contributions & Donations",A47005,
http://opendatacommunities.org/id/london-borough-council/sutton,London Borough of Sutton,24/03/2023,10010980,20.00, OYSTER BUS AUTOLOAD,CL&G,Resources,"Grants, Contributions & Donations",A47005,
http://opendatacommunities.org/id/london-borough-council/sutton,London Borough of Sutton,23/03/2023,10010980,9.00, TIMPSON LTD,Key cutting services,Resources,Equipment And Materials Repairs & Maintenance,A40051,
http://opendatacommunities.org/id/london-borough-council/sutton,London Borough of Sutton,21/03/2023,10010980,133.92, BLS TERMINALWORKS14075,Monitoring cost s,Resources,Equipment And Materials Repairs & Maintenance,A40051,
http://opendatacommunities.org/id/london-borough-council/sutton,London Borough of Sutton,28/02/2023,10010980,26.58, AMZNMKTPLACE,"KEY SAFE BOXES AS REQUESTED BY ""REDACTED - PERSONAL DATA""",Resources,Equipment And Materials Repairs & Maintenance,A40051,
http://opendatacommunities.org/id/london-borough-council/sutton,London Borough of Sutton,28/02/2023,10010980,109.99, WWW.FRONTLINE-SAFETY.C,"TEMP MONITORING TESTER FOR LABORATORIES AS REQUESTED BY ""REDACTED - PERSONAL DATA""",Resources,Equipment And Materials Repairs & Maintenance,A40051,
http://opendatacommunities.org/id/london-borough-council/sutton,London Borough of Sutton,21/03/2023,10010980,50.23, TRAINLINE.COM,"TRAINLINE TICKETS FOR ""REDACTED - PERSONAL DATA"" FROM LEEDS TO LONDON 18TH MAY",Resources,Non-Staff Travel Subsistence & Training,A46006,
http://opendatacommunities.org/id/london-borough-council/sutton,London Borough of Sutton,21/03/2023,10010980,777.24, HOTEL AT BOOKING.COM,"HOTEL ACCOMMODATION FOR ""REDACTED - PERSONAL DATA"" TO ATTEND UKREIIF EVENTS: 16/17 MAY 2023",Resources,Hotel Accomodation,A46010,
http://opendatacommunities.org/id/london-borough-council/sutton,London Borough of Sutton,28/02/2023,10010980,70.02, FACEBK  9JK82Q39W2,ADVERTISEMENT,Development Growth and Regeneration,Publicity,A44266,
http://opendatacommunities.org/id/london-borough-council/sutton,London Borough of Sutton,01/03/2023,10010980,"1,723.16", EASYJET,"RETURN FLIGHTS FOR ""REDACTED - PERSONAL DATA"" TO ATTEND CONFERENCE IN NICE 13 MARCH AND 17TH MARCH",Development Growth and Regeneration,Hotel Accomodation,A46010,
http://opendatacommunities.org/id/london-borough-council/sutton,London Borough of Sutton,23/03/2023,10010980,5.70, UBER  TRIP,TRANSPORT FOR HOMELESS HOUSEHOLD,Environment Housing and Neighbourhoods,Other Supplies & Services,A44291,
http://opendatacommunities.org/id/london-borough-council/sutton,London Borough of Sutton,23/03/2023,10010980,16.57, UBER    TRIP,TRANSPORT FOR HOMELESS HOUSEHOLDS,Environment Housing and Neighbourhoods,Other Supplies & Services,A44291,
http://opendatacommunities.org/id/london-borough-council/sutton,London Borough of Sutton,23/03/2023,10010980,56.66, TRAVELODGE,EMERGENCY ACCOMMODATION FOR HOMELESS HOUSEHOLDS,Environment Housing and Neighbourhoods,Bed & Breakfast,A56000,
http://opendatacommunities.org/id/london-borough-council/sutton,London Borough of Sutton,22/03/2023,10010980,286.87, TRAVELODGE,EMERGENCY ACCOMMODATION FOR HOMELESS HOUSEHOLDS,Environment Housing and Neighbourhoods,Bed & Breakfast,A56000,
http://opendatacommunities.org/id/london-borough-council/sutton,London Borough of Sutton,20/03/2023,10010980,133.33, HOTEL AT BOOKING.COM,EMERGENCY ACCOMMODATION FOR HOMELESS HOUSEHOLDS,Environment Housing and Neighbourhoods,Bed & Breakfast,A56000,
http://opendatacommunities.org/id/london-borough-council/sutton,London Borough of Sutton,20/03/2023,10010980,199.97, TRAVELODGE,EMERGENCY ACCOMMODATION FOR HOMELESS HOUSEHOLDS,Environment Housing and Neighbourhoods,Bed & Breakfast,A56000,
http://opendatacommunities.org/id/london-borough-council/sutton,London Borough of Sutton,17/03/2023,10010980,204.92, HOTEL AT BOOKING.COM,EMERGENCY ACCOMMODATION FOR HOMELESS HOUSEHOLDS,Environment Housing and Neighbourhoods,Bed & Breakfast,A56000,
http://opendatacommunities.org/id/london-borough-council/sutton,London Borough of Sutton,15/03/2023,10010980,122.67, HOTEL AT BOOKING.COM,EMERGENCY ACCOMMODATION FOR HOMELESS HOUSEHOLDS,Environment Housing and Neighbourhoods,Bed & Breakfast,A56000,
http://opendatacommunities.org/id/london-borough-council/sutton,London Borough of Sutton,13/03/2023,10010980,436.61, TRAVELODGE,EMERGENCY ACCOMMODATION FOR HOMELESS HOUSEHOLDS,Environment Housing and Neighbourhoods,Bed & Breakfast,A56000,
http://opendatacommunities.org/id/london-borough-council/sutton,London Borough of Sutton,10/03/2023,10010980,188.30, TRAVELODGE,EMERGENCY ACCOMMODATION FOR HOMELESS HOUSEHOLDS,Environment Housing and Neighbourhoods,Bed & Breakfast,A56000,
http://opendatacommunities.org/id/london-borough-council/sutton,London Borough of Sutton,07/03/2023,10010980,56.25, HOTEL AT BOOKING.COM,EMERGENCY ACCOMMODATION FOR HOMELESS HOUSEHOLD,Environment Housing and Neighbourhoods,Bed & Breakfast,A56000,
http://opendatacommunities.org/id/london-borough-council/sutton,London Borough of Sutton,07/03/2023,10010980,112.50, SURBITON HILLS APARTME,EMERGENCY ACCOMMODATION FOR HOMELESS HOUSEHOLD,Environment Housing and Neighbourhoods,Bed & Breakfast,A56000,
http://opendatacommunities.org/id/london-borough-council/sutton,London Borough of Sutton,07/03/2023,10010980,162.47, TRAVELODGE,EMERGENCY ACCOMMODATION FOR HOMELESS HOUSEHOLDS,Environment Housing and Neighbourhoods,Bed & Breakfast,A56000,
http://opendatacommunities.org/id/london-borough-council/sutton,London Borough of Sutton,07/03/2023,10010980,375.00, HOTEL AT BOOKING.COM,EMERGENCY ACCOMMODATION FOR HOMELESS HOUSEHOLDS,Environment Housing and Neighbourhoods,Bed & Breakfast,A56000,
http://opendatacommunities.org/id/london-borough-council/sutton,London Borough of Sutton,14/03/2023,10010980,-83.33, LBSUTTON,REFUND FOR EVENTS PAYMENT TESTING,Environment Housing and Neighbourhoods,Other Income - VATable,A92360,
http://opendatacommunities.org/id/london-borough-council/sutton,London Borough of Sutton,01/03/2023,10010980,83.33, LBSUTTON,EVENTS PAYMENT TESTING,Environment Housing and Neighbourhoods,Other Income - VATable,A92360,
http://opendatacommunities.org/id/london-borough-council/sutton,London Borough of Sutton,13/03/2023,10010980,33.32, AMZNMKTPLACE,"SPLIT - EUREKA ERGONOMIC OFFICE FOOT REST UNDER DESK, ADJUSTABLE FOOTREST WITH METAL FRAME MASSAGE SURFACE, FOOT STOOL WITH 20 DEGREE TILT ANGLE ADJUSTMENT NO (100%)",Environment Housing and Neighbourhoods,Stationery,A43015,
http://opendatacommunities.org/id/london-borough-council/sutton,London Borough of Sutton,12/03/2023,10010980,11.30, AMZNMKTPLACE,"SPLIT - FELLOWES MOUSE MAT WRIST SUPPORT - CRYSTALS GEL MOUSE PAD WITH NON SLIP RUBBER BASE - ERGONOMIC MOUSE MAT FOR COMPUTER, LAPTOP, HOME OFFICE USE - COMP (100%)",Environment Housing and Neighbourhoods,Stationery,A43015,
http://opendatacommunities.org/id/london-borough-council/sutton,London Borough of Sutton,23/03/2023,10010980,11.37, AMZNMKTPLACE,"SPLIT - FELLOWES CRYSTALS GEL KEYBOARD WRIST REST, BLUE (100%)",Environment Housing and Neighbourhoods,Stationery,A43015,
http://opendatacommunities.org/id/london-borough-council/sutton,London Borough of Sutton,20/03/2023,10010980,87.13, AMZNBUSINESS 1X8YT51G4,"SPLIT - MICROSOFT 365 BUSINESS STANDARD | OFFICE 365 APPS | 1 USER | UP TO 5 PCS/MACS, 5 TABLETS AND 5 PHONES | 1 YEAR SUBSCRIPTION | MULTILINGUAL | BOX (100%)",Environment Housing and Neighbourhoods,IT Hardware Purchase,A45005,
http://opendatacommunities.org/id/london-borough-council/sutton,London Borough of Sutton,10/03/2023,10010980,40.00, GOALS SUTTON - RECEPTI,GOALS FOOTBALL PAYMENT,Peoples Services,Client Care/Assistance,A61011,
http://opendatacommunities.org/id/london-borough-council/sutton,London Borough of Sutton,03/03/2023,10010980,42.00, GEN REGISTER OFFICE,BIRTH CERTIFICATE PAYMENT,Peoples Services,Equipment And Materials Purchase,A40000,
http://opendatacommunities.org/id/london-borough-council/sutton,London Borough of Sutton,16/03/2023,10010980,14.00, GEN REGISTER OFFICE,BIRTH CERT,Peoples Services,Equipment And Materials Purchase,A40000,
http://opendatacommunities.org/id/london-borough-council/sutton,London Borough of Sutton,16/03/2023,10010980,14.00, GEN REGISTER OFFICE,BIRTH CERT,Peoples Services,Equipment And Materials Purchase,A40000,
http://opendatacommunities.org/id/london-borough-council/sutton,London Borough of Sutton,24/03/2023,10010980,"1,789.63", HOTEL AT BOOKING.COM,EMERGENCY ACCOMMODATION,Peoples Services,Bed & Breakfast,A56000,
http://opendatacommunities.org/id/london-borough-council/sutton,London Borough of Sutton,16/03/2023,10010980,81.67, POST OFFICE COUNTER,PASSPORT APPLICATION  A40000 G03050,Peoples Services,Miscellaneous Expenses,A49000,
http://opendatacommunities.org/id/london-borough-council/sutton,London Borough of Sutton,15/03/2023,10010980,41.67, WALLINGTON CARS & COUR,TAXI REQUIRED TO TRANSPORT A FAMILY,Peoples Services,Approved Lodgings,A61000,
http://opendatacommunities.org/id/london-borough-council/sutton,London Borough of Sutton,13/03/2023,10010980,53.52, TRAVELODGE,HOTEL EXPENSES,Peoples Services,Approved Lodgings,A61000,
http://opendatacommunities.org/id/london-borough-council/sutton,London Borough of Sutton,16/03/2023,10010980,115.80, EASYJET,FLIGHT REQUIRED FOR A SOCIAL WORKER TO VISIT YOUNG PERSON,Peoples Services,C.C.A Travel & Subsistance,A61010,
http://opendatacommunities.org/id/london-borough-council/sutton,London Borough of Sutton,28/02/2023,10010980,20.40, WWW.WIGHTLINK.CO.UK,FERRY,Peoples Services,C.C.A Travel & Subsistance,A61010,
http://opendatacommunities.org/id/london-borough-council/sutton,London Borough of Sutton,27/02/2023,10010980,6.66, AMZNMKTPLACE AMAZON.CO,"SPLIT - 24 CHALK, KIDS CHALK, COLOURED CHALK, CHALKS FOR CHILDREN, CHUNKY CHALKS FOR TODDLERS, GIANT, PAVEMENT, WASHABLE, FUN FOR CHILDREN 8 VIBRANT COLOURS, (47.06%)",Peoples Services,Miscellaneous Expenses,A49000,
http://opendatacommunities.org/id/london-borough-council/sutton,London Borough of Sutton,27/02/2023,10010980,7.49, AMZNMKTPLACE AMAZON.CO,SPLIT - HIRALIY NYLON SHUTTLECOCKS 12 (52.94%),Peoples Services,Miscellaneous Expenses,A49000,
http://opendatacommunities.org/id/london-borough-council/sutton,London Borough of Sutton,15/03/2023,10010980,5.42, ASDA GROCERIES ONLINE,ASDA SHOPPING FOR WILLOW RISE CHILDRENS HOME,Peoples Services,Miscellaneous Expenses,A49000,
http://opendatacommunities.org/id/london-borough-council/sutton,London Borough of Sutton,27/02/2023,10010980,19.98, AMZNMKTPLACE AMAZON.CO,SPLIT - KANDYTOYS M.Y FAMILY 2 PLAYER PRO BADMINTON GARDEN GAMES SET INCLUDING RACKETS & SHUTTLECOCK (100%),Peoples Services,Miscellaneous Expenses,A49000,
http://opendatacommunities.org/id/london-borough-council/sutton,London Borough of Sutton,27/02/2023,10010980,5.82, AMZNMKTPLACE AMAZON.CO,SPLIT - ZWZNBL 15PCS MAGNETIC DARTS SAFETY REPLACEMENT DARTS INDOOR GAME TARGET ACCESSORIES 5 COLOR MIX?GREEN RED YELLOW BLUE BLACK? (100%),Peoples Services,Miscellaneous Expenses,A49000,
http://opendatacommunities.org/id/london-borough-council/sutton,London Borough of Sutton,03/03/2023,10010980,-6.90, ASDA GROCERIES ONLINE,ASDA SHOPPING PAYMENT REFUND,Peoples Services,Miscellaneous Expenses,A49000,
http://opendatacommunities.org/id/london-borough-council/sutton,London Borough of Sutton,03/03/2023,10010980,118.35, ASDA GROCERIES ONLINE,ASDA SHOPPING PAYMENT,Peoples Services,Miscellaneous Expenses,A49000,
http://opendatacommunities.org/id/london-borough-council/sutton,London Borough of Sutton,09/03/2023,10010980,111.27, ASDA GROCERIES ONLINE,ASDA SHOPPING PAYMENT,Peoples Services,Miscellaneous Expenses,A49000,
http://opendatacommunities.org/id/london-borough-council/sutton,London Borough of Sutton,13/03/2023,10010980,3.96, AMZNMKTPLACE,"SPLIT - DETTOL POWER AND FRESH FLOOR CLEANER LEMON, 1L (100%)",Peoples Services,Miscellaneous Expenses,A49000,
http://opendatacommunities.org/id/london-borough-council/sutton,London Borough of Sutton,13/03/2023,10010980,3.75, AMZNMKTPLACE,"SPLIT - CIF ANTIBAC & SHINE MULTIPURPOSE WIPES, 80 WIPES (100%)",Peoples Services,Miscellaneous Expenses,A49000,
http://opendatacommunities.org/id/london-borough-council/sutton,London Borough of Sutton,09/03/2023,10010980,-2.75, ASDA GROCERIES ONLINE,ASDA SHOPPING PAYMENT REFUND,Peoples Services,Miscellaneous Expenses,A49000,
http://opendatacommunities.org/id/london-borough-council/sutton,London Borough of Sutton,23/03/2023,10010980,-4.20, ASDA GROCERIES ONLINE,ASDA SHOPPING PAYMENT REFUND,Peoples Services,Miscellaneous Expenses,A49000,
http://opendatacommunities.org/id/london-borough-council/sutton,London Borough of Sutton,23/03/2023,10010980,119.36, ASDA GROCERIES ONLINE,ASDA SHOPPING PAYMENT,Peoples Services,Miscellaneous Expenses,A49000,
http://opendatacommunities.org/id/london-borough-council/sutton,London Borough of Sutton,17/03/2023,10010980,15.99, NETFLIX.COM,NETFLIX MONTHLY PAYMENT,Peoples Services,Miscellaneous Expenses,A49000,
http://opendatacommunities.org/id/london-borough-council/sutton,London Borough of Sutton,17/03/2023,10010980,-1.50, ASDA GROCERIES ONLINE,ASDA SHOPPING PAYMENT,Peoples Services,Miscellaneous Expenses,A49000,
http://opendatacommunities.org/id/london-borough-council/sutton,London Borough of Sutton,17/03/2023,10010980,127.53, ASDA GROCERIES ONLINE,ASDA SHOPPING PAYMENT,Peoples Services,Miscellaneous Expenses,A49000,
http://opendatacommunities.org/id/london-borough-council/sutton,London Borough of Sutton,15/03/2023,10010980,10.82, AMZNMKTPLACE AMAZON.CO,SPLIT - 50 X MICROWAVE PLASTIC FOOD TAKEAWAY HEAVY DUTY SATCO CONTAINERS WITH LIDS - 650ML BY SATCO BY CLASSIC DISPOSABLES (100%),Peoples Services,Miscellaneous Expenses,A49000,
http://opendatacommunities.org/id/london-borough-council/sutton,London Borough of Sutton,14/03/2023,10010980,5.15, AMZNMKTPLACE,"SPLIT - ECO BAG 50 HEAVY DUTY REFUSE SACKS, BLACK, 1X (100%)",Peoples Services,Miscellaneous Expenses,A49000,
http://opendatacommunities.org/id/london-borough-council/sutton,London Borough of Sutton,14/03/2023,10010980,5.72, AMZNMKTPLACE,SPLIT - FAIRY ORIGINAL LEMON WASHING UP LIQUID | PACK OF 2 X 383 ML | DISHES GREASE CLEANER (100%),Peoples Services,Miscellaneous Expenses,A49000,
http://opendatacommunities.org/id/london-borough-council/sutton,London Borough of Sutton,14/03/2023,10010980,8.99, AMZNMKTPLACE AMAZON.CO,SPLIT - NAVANI STAINLESS STEEL CAN OPENER MANUAL THAT WORK COMES WITH 2 ADDITIONAL SMOOTH EDGE TIN OPENER REPLACEMENT BLADES AND ALSO AN ERGONOMICALLY JAR OPE (100%),Peoples Services,Miscellaneous Expenses,A49000,
http://opendatacommunities.org/id/london-borough-council/sutton,London Borough of Sutton,21/03/2023,10010980,18.74, HPI INSTANT INK UK,INK FOR WILLOW RISE CHILDRENS HOME PRINTER,Peoples Services,Miscellaneous Expenses,A49000,
http://opendatacommunities.org/id/london-borough-council/sutton,London Borough of Sutton,28/02/2023,10010980,25.68, AMZNBUSINESS 1L6LZ5VK4,SANITARY PADS AND TAMPONS FOR THE QUAD BUILDING (114.8%),Peoples Services,Miscellaneous Expenses,A49000,
http://opendatacommunities.org/id/london-borough-council/sutton,London Borough of Sutton,28/02/2023,10010980,-3.31, AMZNBUSINESS 1L6LZ5VK4,BALANCING ENTRY AMOUNT (-44.4%),Peoples Services,Miscellaneous Expenses,A49000,
http://opendatacommunities.org/id/london-borough-council/sutton,London Borough of Sutton,28/02/2023,10010980,-229.99, AMZNMKTPLACE AMAZON.CO,REFUND FOR THIS ITEM (100%),Peoples Services,Miscellaneous Expenses,A49000,
http://opendatacommunities.org/id/london-borough-council/sutton,London Borough of Sutton,27/02/2023,10010980,35.88, AMZNBUSINESS 1L6YN40Q4,SANITARY PADS AND TAMPONS FOR THE QUAD BUILDING (109.02%),Peoples Services,Miscellaneous Expenses,A49000,
http://opendatacommunities.org/id/london-borough-council/sutton,London Borough of Sutton,27/02/2023,10010980,-2.97, AMZNBUSINESS 1L6YN40Q4,BALANCING ENTRY AMOUNT (-27.06%),Peoples Services,Miscellaneous Expenses,A49000,
http://opendatacommunities.org/id/london-borough-council/sutton,London Borough of Sutton,28/02/2023,10010980,159.90, ZOOM.US 888-799-9666,SUBSCRIPTION REQUIRED,Peoples Services,Subscriptions,A47010,
http://opendatacommunities.org/id/london-borough-council/sutton,London Borough of Sutton,17/03/2023,10010980,159.90, ZOOM.US 888-799-9666,SUBSCRIPTION FOR A ZOOM ACCOUNT,Peoples Services,Subscriptions,A47010,
http://opendatacommunities.org/id/london-borough-council/sutton,London Borough of Sutton,24/03/2023,10010980,11.00, SUTTON REGISTER OFFICE,BIRTH CERTIFICATE PAYMENT,Peoples Services,Equipment And Materials Purchase,A40000,
http://opendatacommunities.org/id/london-borough-council/sutton,London Borough of Sutton,09/03/2023,10010980,11.00, HAMPSHIRE COUNTY COUNC,BIRTH CERTIFICATE PAYMENT,Peoples Services,Equipment And Materials Purchase,A40000,
http://opendatacommunities.org/id/london-borough-council/sutton,London Borough of Sutton,09/03/2023,10010980,11.00, SUTTON REGISTER OFFICE,BIRTH CERTIFICATE PAYMENT,Peoples Services,Equipment And Materials Purchase,A40000,
http://opendatacommunities.org/id/london-borough-council/sutton,London Borough of Sutton,27/02/2023,10010980,131.00, HM PASSPORT OFFICE,PASSPORT APPLICATION PAYMENT,Peoples Services,Equipment And Materials Purchase,A40000,
http://opendatacommunities.org/id/london-borough-council/sutton,London Borough of Sutton,20/03/2023,10010980,53.17, TESCO STORES 5999,TESCO ORDER,Peoples Services,Miscellaneous Expenses,A49000,
http://opendatacommunities.org/id/london-borough-council/sutton,London Borough of Sutton,17/03/2023,10010980,8.32, AMZNMKTPLACE,SPLIT - CLICK MEDICAL ASSORTED FABRIC PLASTERS (PACK OF 120) (100%),Peoples Services,Miscellaneous Expenses,A49000,
http://opendatacommunities.org/id/london-borough-council/sutton,London Borough of Sutton,15/03/2023,10010980,209.60, WWW.BIGYELLOW.CO.UK,STORAGE,Peoples Services,Client Care/Assistance,A61011,
http://opendatacommunities.org/id/london-borough-council/sutton,London Borough of Sutton,28/02/2023,10010980,320.00, SURVEYMONK  T 43933756,SUBSCRIPTION FOR EARLY HELP TEAM,Peoples Services,Subscriptions,A47010,
http://opendatacommunities.org/id/london-borough-council/sutton,London Borough of Sutton,23/03/2023,10010980,42.00, VIVA ACCESS LTD,"""REDACTED - PERSONAL DATA"" - VIVA ACCESS RAMPING FOR WHEELCHAIR USERS: LEVEL 1 - 10/05/23",Peoples Services,Staff Development And Training,A15022,
http://opendatacommunities.org/id/london-borough-council/sutton,London Borough of Sutton,15/03/2023,10010980,450.00, EB  OCCUPATIONAL THERA,"""REDACTED - PERSONAL DATA""- OT APPLIED TRAINING SEPTEMBER 2023",Peoples Services,Staff Development And Training,A15022,
http://opendatacommunities.org/id/london-borough-council/sutton,London Borough of Sutton,13/03/2023,10010980,771.00, NATIONALBAC,"""REDACTED - PERSONAL DATA""- NATIONAL BACK EXCHANGE CONFERENCE 3 DAYS 17TH, 18TH & 19TH SEPTEMBER 2023",Peoples Services,Staff Development And Training,A15022,
http://opendatacommunities.org/id/london-borough-council/sutton,London Borough of Sutton,08/03/2023,10010980,55.20, WALLINGTON CARS & COUR,CAB PAYMENT,Peoples Services,C.C.A Travel & Subsistance,A61010,
http://opendatacommunities.org/id/london-borough-council/sutton,London Borough of Sutton,15/03/2023,10010980,80.00, WALLINGTON CARS & COUR,WALLINGTON CABS PAYMENT,Peoples Services,C.C.A Travel & Subsistance,A61010,
http://opendatacommunities.org/id/london-borough-council/sutton,London Borough of Sutton,03/03/2023,10010980,448.32, EMIRATES AIRLINES (ABBR. EMIRATES),OVER SEAS SOCIAL WORKERS TRAVEL TICKET,Peoples Services,C.C.A Travel & Subsistance,A61010,
http://opendatacommunities.org/id/london-borough-council/sutton,London Borough of Sutton,03/03/2023,10010980,20.00, LONDON CABLECAR ONLINE,CABLECAR,Peoples Services,C.C.A Travel & Subsistance,A61010,
http://opendatacommunities.org/id/london-borough-council/sutton,London Borough of Sutton,06/03/2023,10010980,500.00, SP PHOTOSYMBOLS LTD,REQUIRED SUBSCRIPTION FOR THE IT TEAM,Peoples Services,Miscellaneous Expenses,A49000,
http://opendatacommunities.org/id/london-borough-council/sutton,London Borough of Sutton,02/03/2023,10010980,124.84, STORAGEMART UK #5215,STORAGE PAYMENT,Peoples Services,Client Care/Assistance,A61011,
http://opendatacommunities.org/id/london-borough-council/sutton,London Borough of Sutton,14/03/2023,10010980,20.82, AMZNMKTPLACE,SPLIT - SPETEBO STAINLESS STEEL ASHTRAY WITH LID - TABLE ASHTRAY 12 CM - STORM ASHTRAY DESIGN WITH TILT LID - FOLDING ASHTRAY WIND ASHTRAY (100%),Peoples Services,Equipment And Materials Purchase,A40000,
http://opendatacommunities.org/id/london-borough-council/sutton,London Borough of Sutton,23/03/2023,10010980,0.88, FOREIGN EXCHANGE FEE,FOREIGN EXCHANGE FEE,Peoples Services,Miscellaneous Expenses,A49000,
http://opendatacommunities.org/id/london-borough-council/sutton,London Borough of Sutton,22/03/2023,10010980,32.02, QUICKLUTION,Google licence,Peoples Services,Miscellaneous Expenses,A49000,
http://opendatacommunities.org/id/london-borough-council/sutton,London Borough of Sutton,21/03/2023,10010980,45.00, ALLIUM,FUNERALWREATHRB,Peoples Services,Funeral Expenses,A44220,
http://opendatacommunities.org/id/london-borough-council/sutton,London Borough of Sutton,13/03/2023,10010980,22.00, LBSUTTON MOTO,DEATHCERTSRBANDKC,Peoples Services,Funeral Expenses,A44220,
http://opendatacommunities.org/id/london-borough-council/sutton,London Borough of Sutton,01/03/2023,10010980,140.00, SIGNATURE,SIGNATURE INVOICES RECEIPT T02230 A44200,Health and Wellbeing,Examination Fees,A44200,
http://opendatacommunities.org/id/london-borough-council/sutton,London Borough of Sutton,01/03/2023,10010980,53.75, CARTRIDGEPEOPLE.COM,CARTRIDGES IT,Health and Wellbeing,IT Software Purchase,A45040,
http://opendatacommunities.org/id/london-borough-council/sutton,London Borough of Sutton,01/03/2023,10010980,65.25, GSUITE_SUTTONCOLLEGE.A,GOOGLE CLOUD EMEA LIMITED 4676308096,Health and Wellbeing,Subscriptions,A47010,
http://opendatacommunities.org/id/london-borough-council/sutton,London Borough of Sutton,23/03/2023,10010980,105.87, GB FOAM LTD,REED WOODWORK COURSE MARCH23 FOAM ORDER 127.05,Health and Wellbeing,Equipment And Materials Purchase,A40000,
http://opendatacommunities.org/id/london-borough-council/sutton,London Borough of Sutton,16/03/2023,10010980,20.00, THE GOOD HOME,GOOD HOME GIFTS PHOT COMP AWARDS 20 160323,Health and Wellbeing,Publicity,A44266,
http://opendatacommunities.org/id/london-borough-council/sutton,London Borough of Sutton,07/03/2023,10010980,47.99, ADOBE STOCK,ADOBE 070323 47.99,Health and Wellbeing,Publicity,A44266,
http://opendatacommunities.org/id/london-borough-council/sutton,London Borough of Sutton,28/02/2023,10010980,103.31, FACEBK  RAWUQKX6A2,FACEBOOK AD 280223 103.31,Health and Wellbeing,Publicity,A44266,
http://opendatacommunities.org/id/london-borough-council/sutton,London Borough of Sutton,28/02/2023,10010980,96.95, MAILCHIMP,MAILCHIMP 280223 116.34,Health and Wellbeing,Publicity,A44266,
http://opendatacommunities.org/id/london-borough-council/sutton,London Borough of Sutton,27/02/2023,10010980,4.00, WILKO RETAIL LIMITED,WILKO FIXINGS 270223 4.00,Health and Wellbeing,Publicity,A44266,
http://opendatacommunities.org/id/london-borough-council/sutton,London Borough of Sutton,20/03/2023,10010980,304.65, THOMAS RIDLEY FOODSERV,VENDING MACHINE SUPPLIES VL,Health and Wellbeing,Vending Machines Supplies,A44041,
http://opendatacommunities.org/id/london-borough-council/sutton,London Borough of Sutton,27/02/2023,10010980,32.91, AMZNMKTPLACE AMAZON.CO,"SPLIT - RELIANCEUK 24 PACK WHITE SUBLIMATION MUGS BLANKS WHOLESALE WHITE COFFEE MUGS WITH LARGE HANDLES IDEAL FOR HOME, OFFICE SETS, WORK MUGS, GIFTS WITH SMASH PROOF MUG BOXES (100%)",Health and Wellbeing,Insurance Claims,A44261,
http://opendatacommunities.org/id/london-borough-council/sutton,London Borough of Sutton,24/03/2023,10010980,198.72, BPP LEARNING MEDIA LTD,BPP-LEARNING-MEDIA ORDER (BPPLM16796744237235),Health and Wellbeing,Books,A43050,
http://opendatacommunities.org/id/london-borough-council/sutton,London Borough of Sutton,16/03/2023,10010980,79.36, INTAGLIO PRINTMAKER,SATURDAY SESSION PRINT 160323 95.23,Health and Wellbeing,Equipment And Materials Purchase,A40000,
http://opendatacommunities.org/id/london-borough-council/sutton,London Borough of Sutton,24/03/2023,10010980,177.78, COOKSON PRECIOUS M,SATURDAY SESSION JEWELLERY COOKSONGOLD SILVER 212.66 240323,Health and Wellbeing,Equipment And Materials Purchase,A40000,
http://opendatacommunities.org/id/london-borough-council/sutton,London Borough of Sutton,23/03/2023,10010980,14.94, AMZNMKTPLACE AMAZON.CO,SPLIT - 10 PCS CHARCOALS STICKS ARTIST WILLOW CHARCOAL ASSORTED 10 STICKS BAR SKETCH ART DRAWING SKETCHING OIL PAINTING CHARCOAL DRAW SHADING STICK TOOL WATER (67.34%),Health and Wellbeing,Equipment And Materials Purchase,A40000,
http://opendatacommunities.org/id/london-borough-council/sutton,London Borough of Sutton,23/03/2023,10010980,7.24, AMZNMKTPLACE AMAZON.CO,"SPLIT - 100% ECO RECYCLED ART A3 CARTRIDGE PAPER WHITE GREAT ART PAPER 140GSM PACK OF 50 SHEETS - SUITABLE FOR BOOKMAKING, SKETCHING, PAINTING, PRINTING AND M (32.66%)",Health and Wellbeing,Equipment And Materials Purchase,A40000,
http://opendatacommunities.org/id/london-borough-council/sutton,London Borough of Sutton,23/03/2023,10010980,13.30, AMZNMKTPLACE AMAZON.CO,"SPLIT - PUTTY RUBBERS, XUDOAI GREY KNEADED ERASER PUTTY RUBBERS FOR ART ERASERS FOR ARTISTS KNEADABLE PUTTY RUBBER ?8 PIECES? (100%)",Health and Wellbeing,Equipment And Materials Purchase,A40000,
http://opendatacommunities.org/id/london-borough-council/sutton,London Borough of Sutton,23/03/2023,10010980,17.11, COOKSON PRECIOUS M,SATURDAY SESSION JEWELLERY SILVER COOKSONGOLD 230323 20.53,Health and Wellbeing,Equipment And Materials Purchase,A40000,
http://opendatacommunities.org/id/london-borough-council/sutton,London Borough of Sutton,22/03/2023,10010980,149.67, TOOLSTATION UK,REED WOODWORK COURSE MARCH23 TOOLSTATION ORDER 179.61,Health and Wellbeing,Equipment And Materials Purchase,A40000,
http://opendatacommunities.org/id/london-borough-council/sutton,London Borough of Sutton,21/03/2023,10010980,344.43, WWW.CHAMPIONTIMBER,REED WOODWORK COURSE MARCH23 CHAMPION ORDER 413.32,Health and Wellbeing,Equipment And Materials Purchase,A40000,
http://opendatacommunities.org/id/london-borough-council/sutton,London Borough of Sutton,27/02/2023,10010980,38.40, B&Q LTD,B&Q TILES DIY WOOD 270223 46.08,Health and Wellbeing,Equipment And Materials Purchase,A40000,
http://opendatacommunities.org/id/london-borough-council/sutton,London Borough of Sutton,23/03/2023,10010980,28.83, HOBBYCRAFT TRADING LIM,SATURDAY SESSION FASHION HOBBYCRAFT 230323 34.60,Health and Wellbeing,Equipment And Materials Purchase,A40000,
http://opendatacommunities.org/id/london-borough-council/sutton,London Borough of Sutton,06/03/2023,10010980,440.45, E POLLARD AND SONS LIM,"""REDACTED - PERSONAL DATA""_33475_33722",Health and Wellbeing,Equipment And Materials Purchase,A40000,
http://opendatacommunities.org/id/london-borough-council/sutton,London Borough of Sutton,02/03/2023,10010980,258.47, AMZNMKTPLACE,BEAUTY INVOICE #1 OF 10 280223 FOR 310.16,Health and Wellbeing,Equipment And Materials Purchase,A40000,
http://opendatacommunities.org/id/london-borough-council/sutton,London Borough of Sutton,25/03/2023,10010980,3.33, AMZNMKTPLACE,SPLIT - HELIX OXFORD MATHS SET WITH STORAGE TIN (57.22%),Peoples Services,LAC - Education,A44280,
http://opendatacommunities.org/id/london-borough-council/sutton,London Borough of Sutton,26/03/2023,10010980,170.32, AMZNMKTPLACE,"SPLIT - LEGO 17101 BOOST CREATIVE TOOLBOX ROBOTICS KIT, PROGRAMMABLE INTERACTIVE ROBOT TOY, 5 IN 1 APP CONTROLLED BUILDING MODEL WITH BLUETOOTH HUB, CODING KITS FOR KIDS (86.32%)",Peoples Services,LAC - Education,A44280,
http://opendatacommunities.org/id/london-borough-council/sutton,London Borough of Sutton,26/03/2023,10010980,26.99, AMZNMKTPLACE,BALANCING ENTRY AMOUNT (13.68%),Peoples Services,LAC - Education,A44280,
http://opendatacommunities.org/id/london-borough-council/sutton,London Borough of Sutton,25/03/2023,10010980,2.49, AMZNMKTPLACE,SPLIT - ARK PENCIL CASE PVC COLOURED ZIP 200X125MM CLEAR ASSORTED REF : 33645 (42.78%),Peoples Services,LAC - Education,A44280,
http://opendatacommunities.org/id/london-borough-council/sutton,London Borough of Sutton,25/03/2023,10010980,4.43, AMZNMKTPLACE,"SPLIT - HIGHLIGHTER - STABILO NEON - PACK OF 5 - YELLOW, GREEN, ORANGE, PINK, MAGENTA (100%)",Peoples Services,LAC - Education,A44280,
http://opendatacommunities.org/id/london-borough-council/sutton,London Borough of Sutton,24/03/2023,10010980,4.16, AMZNMKTPLACE AMAZON.CO,"SPLIT - BIC 4 COLOURS ORIGINAL, RETRACTABLE BALLPOINT PENS, IDEAL FOR SCHOOL, MEDIUM POINT (1.0MM), MULTI-COLOURED, PACK OF 3 (100%)",Peoples Services,LAC - Education,A44280,
http://opendatacommunities.org/id/london-borough-council/sutton,London Borough of Sutton,24/03/2023,10010980,1.49, AMZNBUSINESS I818X7N05,"SPLIT - HELIX OXFORD TWIN PACK OF ERASERS, OXFORD BLUE, LARGE (50%)",Peoples Services,LAC - Education,A44280,
http://opendatacommunities.org/id/london-borough-council/sutton,London Borough of Sutton,24/03/2023,10010980,1.49, AMZNBUSINESS I818X7N05,"SPLIT - HELIX OXFORD TWIN PACK OF ERASERS, OXFORD BLUE, LARGE (50%)",Peoples Services,LAC - Education,A44280,
http://opendatacommunities.org/id/london-borough-council/sutton,London Borough of Sutton,24/03/2023,10010980,3.99, AMZNMKTPLACE AMAZON.CO,"SPLIT - VEYLIN FLASH CARDS, INDEX CRADS, 150PCS REVISION CARDS BLANK STUDY CARDS FOR OFFICE SCHOOL LEARNING (50%)",Peoples Services,LAC - Education,A44280,
http://opendatacommunities.org/id/london-borough-council/sutton,London Borough of Sutton,24/03/2023,10010980,3.32, AMZNMKTPLACE AMAZON.CO,"SPLIT - BETTERDAY STUDIO 30 DAYS OF GRATITUDE, MINI WELLNESS NOTEBOOK, POSITIVE MENTAL HEALTH DIARY (50%)",Peoples Services,LAC - Education,A44280,
http://opendatacommunities.org/id/london-borough-council/sutton,London Borough of Sutton,24/03/2023,10010980,3.32, AMZNMKTPLACE,"SPLIT - 12 PCS DRAWING PENCILS 8B, 7B, 6B, 5B, 4B, 3B, 2B, B, HB, F, H, 2H, SKETCHING PENCILS WITH GRAPHITE LEAD (100%)",Peoples Services,LAC - Education,A44280,
http://opendatacommunities.org/id/london-borough-council/sutton,London Borough of Sutton,24/03/2023,10010980,10.82, AMZNMKTPLACE,"SPLIT - BIC CRISTAL ORIGINAL SMUDGE FREE BALLPOINT PENS, IDEAL FOR SCHOOL, BLACK, MEDIUM POINT (1.0MM), PACK OF 50 (100%)",Peoples Services,LAC - Education,A44280,
http://opendatacommunities.org/id/london-borough-council/sutton,London Borough of Sutton,21/03/2023,10010980,299.95, AMZNMKTPLACE AMAZON.CO,"SPLIT - LENOVO IDEAPAD FLEX 3 11.6 INCH HD 2-IN-1 LAPTOP - (INTEL CELERON, 4 GB RAM, 32 GB EMMC, CHROME OS) - ABYSS BLUE (100%)",Peoples Services,LAC - Education,A44280,
http://opendatacommunities.org/id/london-borough-council/sutton,London Borough of Sutton,20/03/2023,10010980,11.10, AMZNBUSINESS 1X3UB2PY4,SPLIT - HELIX OXFORD COMPLETE STATIONERY SET IN 13.5 INCH PENCIL CASE (100%),Peoples Services,LAC - Education,A44280,
http://opendatacommunities.org/id/london-borough-council/sutton,London Borough of Sutton,19/03/2023,10010980,4.99, AMZNBUSINESS C60E57NC5,SPLIT - VOCABULARY NOTEBOOK - ALPHABETICAL - 2 COLUMNS WITH A-Z TABS: BLANK LINED VOCABULARY JOURNAL TO LEARN EASILY FOREIGN LANGUAGES (100%),Peoples Services,LAC - Education,A44280,
http://opendatacommunities.org/id/london-borough-council/sutton,London Borough of Sutton,19/03/2023,10010980,25.20, AMZNBUSINESS 1X8Z930F4,SPLIT - LONGMAN PHOTO DICTIONARY (42.79%),Peoples Services,LAC - Education,A44280,
http://opendatacommunities.org/id/london-borough-council/sutton,London Borough of Sutton,19/03/2023,10010980,22.70, AMZNBUSINESS 1X8Z930F4,SPLIT - ENGLISH VOCABULARY IN USE ELEMENTARY BOOK WITH ANSWERS: VOCABULARY REFERENCE AND PRACTICE (38.55%),Peoples Services,LAC - Education,A44280,
http://opendatacommunities.org/id/london-borough-council/sutton,London Borough of Sutton,19/03/2023,10010980,10.99, AMZNBUSINESS 1X8Z930F4,SPLIT - THE ILLUSTRATED FIRST AID IN ENGLISH (18.66%),Peoples Services,LAC - Education,A44280,
http://opendatacommunities.org/id/london-borough-council/sutton,London Borough of Sutton,15/03/2023,10010980,104.49, SP TATTI LASHES,BEAUTY PURCHASE FOR CLA,Peoples Services,LAC - Education,A44280,
http://opendatacommunities.org/id/london-borough-council/sutton,London Borough of Sutton,08/03/2023,10010980,5.99, AMZNBUSINESS 1R1NF0EY4,SPLIT - FUNCTIONAL SKILLS ENGLISH LEVEL 1 - 10 MINUTE TESTS (CGP FUNCTIONAL SKILLS) (100%),Peoples Services,LAC - Education,A44280,
http://opendatacommunities.org/id/london-borough-council/sutton,London Borough of Sutton,08/03/2023,10010980,5.99, AMZNBUSINESS 1R5E62EN4,SPLIT - FUNCTIONAL SKILLS MATHS LEVEL 1 - 10 MINUTE TESTS (CGP FUNCTIONAL SKILLS) (41.2%),Peoples Services,LAC - Education,A44280,
http://opendatacommunities.org/id/london-borough-council/sutton,London Borough of Sutton,08/03/2023,10010980,8.55, AMZNBUSINESS 1R5E62EN4,SPLIT - FUNCTIONAL SKILLS ENGLISH: EDEXCEL LEVEL 1 - STUDY & TEST PRACTICE (CGP FUNCTIONAL SKILLS) (58.8%),Peoples Services,LAC - Education,A44280,
http://opendatacommunities.org/id/london-borough-council/sutton,London Borough of Sutton,07/03/2023,10010980,62.55, TOPS PIZZA SUTTON,PIZZA ORDER FOR ATTENDANCE CAMPAIGN MEETING,Peoples Services,LAC - Education,A44280,
http://opendatacommunities.org/id/london-borough-council/sutton,London Borough of Sutton,07/03/2023,10010980,7.99, AMZNBUSINESS 1R7CY5EJ4,SPLIT - FUNCTIONAL SKILLS MATHS LEVEL 1 - STUDY & TEST PRACTICE (CGP FUNCTIONAL SKILLS) (100%),Peoples Services,LAC - Education,A44280,
http://opendatacommunities.org/id/london-borough-council/sutton,London Borough of Sutton,01/03/2023,10010980,12.90, AMZNBUSINESS 1L2HY5Q44,SPLIT - SPANISH VERBS MADE EASY WORKBOOK: LEARN VERBS AND CONJUGATIONS THE EASY WAY (100%),Peoples Services,LAC - Education,A44280,
http://opendatacommunities.org/id/london-borough-council/sutton,London Borough of Sutton,01/03/2023,10010980,13.35, AMZNBUSINESS 1L2SQ0284,"SPLIT - THE ULTIMATE NINJA FOODI UK COOKBOOK FOR BEGINNERS: 1500-DAY TASTY, QUICK & FOOLPROOF NINJA FOODI RECIPES FOR YOUR FRIENDS AND FAMILY(PACKAGING MAY VA (100%)",Peoples Services,LAC - Education,A44280,
http://opendatacommunities.org/id/london-borough-council/sutton,London Borough of Sutton,28/02/2023,10010980,15.99, AMZNBUSINESS 1L0GG08X4,SPLIT - THE GIGANTIC BEARD THAT WAS EVIL (100%),Peoples Services,LAC - Education,A44280,
http://opendatacommunities.org/id/london-borough-council/sutton,London Borough of Sutton,28/02/2023,10010980,20.00, AMAZON.CO.UK 1L7J38M14,SPLIT - AMAZON.CO.UK GIFT CARD FOR ANY AMOUNT IN A BLACK AND SILVER MINI ENVELOPE (100%),Peoples Services,LAC - Education,A44280,
